{"text_format":"1","workbook":"xlsx","n_sheets":25,"sheets":["Contents","Ordering Numbers","Value of the Digit","Read the Number","Rounding","Add1","Subtract","% of Amount","Bar Charts","Fraction to %","Coordinates","Bar Line Graphs","Comparitive Bar Charts","Compound Bar Charts","Pie Charts","Pei Charts 2","Mean, Median and Mode","Simplifying","Simplifying (2)","Data Comparison","Bidmas","Mental Multiplication","Template","Metric Units","Sequences"],"not_rendered":{"charts":9,"images":0,"macros":1,"external_links":0,"defined_names":193,"comments":0,"pivot_tables":0},"unopened":[],"bounds":{"document_bytes":16777216,"sheet_cells":100000,"rows_first":2000,"rows_last":500,"rows_between":2000,"halvings":0,"cell_chars":16384,"cell_head_chars":4096},"cells_cut":0,"cells_raw":0,"read":"whole","date_system":"1900"}

{"sheet":"Contents","index":0,"n_rows":0,"n_cols":0,"rows_kept":0,"cut":false,"hidden":false,"merged":[]}

{"sheet":"Ordering Numbers","index":1,"n_rows":20,"n_cols":15,"rows_kept":20,"cut":false,"hidden":false,"merged":[[19,10,21,11],[7,1,8,3],[10,1,11,3],[13,1,14,3],[16,1,17,3],[19,1,20,3],[11,14,12,15],[11,12,12,13],[7,10,9,11],[10,10,12,11],[13,10,15,11],[16,10,18,11]]}
[]
[]
[]
[]
[]
[null,"Order the numbers below for lowest to highest."]
[]
[null,3.34,null,null,null,null,null,null,null,null,3.34]
[]
[]
[null,7.73,null,null,null,null,null,null,null,null,7.73]
[null,null,null,null,null,null,null,null,null,null,null,null,"Level",null,2]
[]
[null,7.84,null,null,null,null,null,null,null,null,7.84]
[]
[]
[null,7.52,null,null,null,null,null,null,null,null,7.52]
[]
[]
[null,8.48,null,null,null,null,null,null,null,null,8.48]

{"sheet":"Value of the Digit","index":2,"n_rows":10,"n_cols":10,"rows_kept":10,"cut":false,"hidden":false,"merged":[[9,3,9,10]]}
[]
[]
[]
[]
[null,"What is the value of the 7 in the number below?"]
[]
[null,null,null,"5,",6,3,"1,",7,2,1]
[]
[]
[null,null,null,700]

{"sheet":"Read the Number","index":3,"n_rows":7,"n_cols":10,"rows_kept":7,"cut":false,"hidden":false,"merged":[]}
[]
[]
[]
[]
[null,"Read the number below:"]
[]
[null,null,null,2,5,8,5,3,8,5]

{"sheet":"Rounding","index":4,"n_rows":7,"n_cols":17,"rows_kept":7,"cut":false,"hidden":false,"merged":[[5,16,5,19],[6,4,6,9]]}
[]
[]
[]
[]
[null,"Round the number below to the nearest 10."]
[null,null,null,null,null,null,null,null,null,null,null,null,null,null,"Level",null,"Nearest 10"]
[null,null,null,null,182]

{"sheet":"Add1","index":5,"n_rows":9,"n_cols":23,"rows_kept":9,"cut":false,"hidden":false,"merged":[]}
[null,null,null,null,null,null,null,null,null,null,null,null,null,null,null,null,null,null,null,null,null,null,293]
[null,null,null,null,null,null,null,null,null,null,null,null,null,null,null,null,null,null,null,null,null,null,765]
[null,null,null,null,null,null,null,null,null,null,null,null,null,null,null,null,null,null,null,null,null,null,{"$f":"SUM(W1:W2)","v":1058}]
[]
[null,"Add the numbers below:"]
[]
[null,null,null,{"$f":"LEFT(W1)","v":"2"},{"$f":"MID(W1,2,1)","v":"9"},{"$f":"RIGHT(W1)","v":"3"}]
[null,null," +",{"$f":"LEFT(W2)","v":"7"},{"$f":"MID(W2,2,1)","v":"6"},{"$f":"RIGHT(W2)","v":"5"}]
[null,null,{"$f":"LEFT(W3)","v":"1"},{"$f":"MID(W3,2,1)","v":"0"},{"$f":"MID(W3,3,1)","v":"5"},{"$f":"RIGHT(W3)","v":"8"}]

{"sheet":"Subtract","index":6,"n_rows":9,"n_cols":23,"rows_kept":9,"cut":false,"hidden":false,"merged":[]}
[null,null,null,null,null,null,null,null,null,null,null,null,null,null,null,null,null,null,null,null,null,null,871]
[null,null,null,null,null,null,null,null,null,null,null,null,null,null,null,null,null,null,null,null,null,null,198]
[null,null,null,null,null,null,null,null,null,null,null,null,null,null,null,null,null,null,null,null,null,null,{"$f":"W1-W2","v":673}]
[]
[null,"Subtract the numbers below:"]
[]
[null,null,null,{"$f":"LEFT(W1)","v":"8"},{"$f":"MID(W1,2,1)","v":"7"},{"$f":"RIGHT(W1)","v":"1"}]
[null,null,"-",{"$f":"LEFT(W2)","v":"1"},{"$f":"MID(W2,2,1)","v":"9"},{"$f":"RIGHT(W2)","v":"8"}]
[null,null,null,{"$f":"LEFT(W3)","v":"6"},{"$f":"MID(W3,2,1)","v":"7"},{"$f":"RIGHT(W3)","v":"3"}]

{"sheet":"% of Amount","index":7,"n_rows":5,"n_cols":2,"rows_kept":5,"cut":false,"hidden":false,"merged":[[4,1,8,13]]}
[]
[]
[]
[]
[null,"Find 90% of £10"]

{"sheet":"Bar Charts","index":8,"n_rows":14,"n_cols":5,"rows_kept":14,"cut":false,"hidden":false,"merged":[[13,4,13,6],[7,1,7,3],[7,4,7,6],[8,4,8,6],[9,4,9,6],[10,4,10,6],[11,4,11,6],[12,4,12,6],[8,1,8,3],[9,1,9,3],[10,1,10,3],[11,1,11,3],[12,1,12,3],[13,1,13,3]]}
[]
[]
[]
[]
[null,"Tom collected some data about the number of bothers and sisters his class mates had. "]
[null,"The frequency table below show his results"]
[]
[null,"Number of Siblings",null,null,"Frequency"]
[null,0,null,null,4]
[null,1,null,null,1]
[null,2,null,null,10]
[null,3,null,null,8]
[null,4,null,null,2]
[null,"More than 5",null,null,5]

{"sheet":"Fraction to %","index":9,"n_rows":14,"n_cols":19,"rows_kept":14,"cut":false,"hidden":false,"merged":[[11,16,12,17],[11,18,12,19],[13,16,14,17],[13,18,14,19],[6,5,7,6],[8,5,9,6]]}
[]
[]
[]
[]
[null,"Convert the fraction below into a percentage."]
[]
[null,null,null,null,null,5]
[]
[null,null,null,null,null,25]
[]
[]
[null,null,null,null,null,null,null,null,null,null,null,null,null,null,null,null,0.1,null,0.15]
[]
[null,null,null,null,null,null,null,null,null,null,null,null,null,null,null,null,0.3,null,0.25]

{"sheet":"Coordinates","index":10,"n_rows":10,"n_cols":9,"rows_kept":10,"cut":false,"hidden":false,"merged":[[6,5,7,6],[8,5,9,6]]}
[]
[]
[]
[]
[null,"What are the coordinates of the point below?"]
[]
[]
[]
[]
[null,null,null,null,null,null,null,-5,-2]

{"sheet":"Bar Line Graphs","index":11,"n_rows":14,"n_cols":5,"rows_kept":14,"cut":false,"hidden":false,"merged":[[13,1,13,3],[13,4,13,6],[10,1,10,3],[10,4,10,6],[11,1,11,3],[11,4,11,6],[12,1,12,3],[12,4,12,6],[7,1,7,3],[7,4,7,6],[8,1,8,3],[8,4,8,6],[9,1,9,3],[9,4,9,6]]}
[]
[]
[]
[]
[null,"Tom collected some data about the number of bothers and sisters his class mates had. "]
[null,"The frequency table below show his results"]
[]
[null,"Number of Siblings",null,null,"Frequency"]
[null,0,null,null,10]
[null,1,null,null,5]
[null,2,null,null,10]
[null,3,null,null,2]
[null,4,null,null,1]
[null,"More than 5",null,null,2]

{"sheet":"Comparitive Bar Charts","index":12,"n_rows":14,"n_cols":8,"rows_kept":14,"cut":false,"hidden":false,"merged":[[13,7,13,9],[10,1,10,3],[7,7,7,9],[8,7,8,9],[9,7,9,9],[10,7,10,9],[11,7,11,9],[12,7,12,9],[7,1,7,3],[7,4,7,6],[8,1,8,3],[8,4,8,6],[9,1,9,3],[13,1,13,3],[13,4,13,6],[9,4,9,6],[10,4,10,6],[11,1,11,3],[11,4,11,6],[12,1,12,3],[12,4,12,6]]}
[]
[]
[]
[]
[null,"Lu and Rob collected some data about the types and number"]
[null,"of birds in their gardens over a week."]
[]
[null,"Type of Bird",null,null,"Lu's Garden",null,null,"Rob's Garden"]
[null,"Sparrow",null,null,1,null,null,10]
[null,"Robin",null,null,7,null,null,10]
[null,"Pigeon",null,null,9,null,null,2]
[null,"Crow",null,null,9,null,null,5]
[null,"Magpie",null,null,2,null,null,8]
[null,"Blackbird",null,null,2,null,null,5]

{"sheet":"Compound Bar Charts","index":13,"n_rows":13,"n_cols":8,"rows_kept":13,"cut":false,"hidden":false,"merged":[[11,1,11,3],[12,1,12,3],[9,1,9,3],[10,1,10,3],[7,1,7,3],[8,1,8,3]]}
[]
[]
[]
[]
[null,"John collected data on eye colour in four classes in"]
[null,"year 7. He displayed it in a compound bar chart."]
[]
[null,"Eye Colour",null,null,"7A1","7A2","7A3","7A4"]
[null,"Blue",null,null,7,8,6,0]
[null,"Brown",null,null,8,7,8,2]
[null,"Green",null,null,7,9,6,7]
[null,"Hazel",null,null,8,4,2,3]
[null,"Totals",null,null,{"$f":"SUM(E9:E12)","v":30},{"$f":"SUM(F9:F12)","v":28},{"$f":"SUM(G9:G12)","v":22},{"$f":"SUM(H9:H12)","v":12}]

{"sheet":"Pie Charts","index":14,"n_rows":15,"n_cols":34,"rows_kept":15,"cut":false,"hidden":false,"merged":[[10,11,11,20]]}
[]
[]
[]
[null,null,null,null,null,null,null,null,null,null,null,null,null,null,null,null,null,null,null,null,null,null,null,null,null,null,null,null,null,null,null,null,"Pet","Frequency"]
[null,null,null,null,null,null,null,null,null,null,null,"How many animals are there altogeter?",null,null,null,null,null,null,null,null,null,null,null,null,null,null,null,null,null,null,null,null,"Cats",7]
[null,null,null,null,null,null,null,null,null,null,null,null,null,null,null,null,null,null,null,null,null,null,null,null,null,null,null,null,null,null,null,null,"Dogs",3]
[null,null,null,null,null,null,null,null,null,null,null,"What fraction of the animals were rabbits?",null,null,null,null,null,null,null,null,null,null,null,null,null,null,null,null,null,null,null,null,"Rabbits",19]
[null,null,null,null,null,null,null,null,null,null,null,null,null,null,null,null,null,null,null,null,null,null,null,null,null,null,null,null,null,null,null,null,"Hamster",4]
[null,null,null,null,null,null,null,null,null,null,null,"What percentage of the animals were rabbits?",null,null,null,null,null,null,null,null,null,null,null,null,null,null,null,null,null,null,null,null,"Other",5]
[null,null,null,null,null,null,null,null,null,null,null,null,null,null,null,null,null,null,null,null,null,null,null,null,null,null,null,null,null,null,null,null,null,{"$f":"SUM(AH5:AH9)","v":38}]
[null,null,null,null,null,null,null,null,null,null,null,"What number of degrees would the rabbits be represented by?"]
[]
[]
[null,null,null,null,null,null,null,null,null,null,null,"The Pie Chart shows the pets of pupils"]
[null,null,null,null,null,null,null,null,null,null,null,"in two classes in a school."]

{"sheet":"Pei Charts 2","index":15,"n_rows":17,"n_cols":34,"rows_kept":17,"cut":false,"hidden":false,"merged":[[10,11,11,20]]}
[]
[]
[]
[null,null,null,null,null,null,null,null,null,null,null,null,null,null,null,null,null,null,null,null,null,null,null,null,null,null,null,null,null,null,null,null,"Pet","Frequency"]
[null,null,null,null,null,null,null,null,null,null,null,null,null,null,null,null,null,null,null,null,null,null,null,null,null,null,null,null,null,null,null,null,"Dog Owners",4]
[null,null,null,null,null,null,null,null,null,null,null,null,null,null,null,null,null,null,null,null,null,null,null,null,null,null,null,null,null,null,null,null,"Cat Owners",16]
[null,null,null,null,null,null,null,null,null,null,null,null,null,null,null,null,null,null,null,null,null,null,null,null,null,null,null,null,null,null,null,null,"Dog Owners",10]
[null,null,null,null,null,null,null,null,null,null,null,null,null,null,null,null,null,null,null,null,null,null,null,null,null,null,null,null,null,null,null,null,"Cat Owners",20]
[]
[]
[]
[]
[]
[]
[]
[]
[null,"Halifax Road",null,null,null,null,null,null,null,null,null,null,null,null,null,null,"Devon Square"]

{"sheet":"Mean, Median and Mode","index":16,"n_rows":7,"n_cols":23,"rows_kept":7,"cut":false,"hidden":false,"merged":[[6,14,7,15],[6,16,7,17],[6,18,7,19],[4,2,5,13],[6,2,7,3],[6,4,7,5],[6,6,7,7],[6,8,7,9],[6,10,7,11],[6,12,7,13]]}
[]
[]
[]
[]
[null,null,"Find the range of:"]
[null,null,null,null,null,null,null,null,null,null,null,null,null,null,null,null,null,null,null,null,"Level",null,3]
[null,null,8,null,3,null,7,null,8,null,7,null,9]

{"sheet":"Simplifying","index":17,"n_rows":5,"n_cols":50,"rows_kept":5,"cut":false,"hidden":false,"merged":[[11,1,12,18]]}
[null,null,null,null,null,null,null,null,null,null,null,null,null,null,null,null,null,null,null,null,null,null,null,null,null,null,null,null,null,null,null,null,null,null,null,null,null,null,null,null,null,null,null,null,null,null,null,null,null,5]
[null,null,null,null,null,null,null,null,null,null,null,null,null,null,null,null,null,null,null,null,null,null,null,null,null,null,null,null,null,null,null,null,null,null,null,null,null,null,null,null,null,null,null,null,null,null,null,null,null,4]
[]
[]
[null,"b",null,"a",null,"a",null,"a",null,"a",null,"b",null,"a",null,"b",null,"b"]

{"sheet":"Simplifying (2)","index":18,"n_rows":9,"n_cols":50,"rows_kept":9,"cut":false,"hidden":false,"merged":[[8,1,9,17],[14,1,15,17]]}
[null,null,null,null,null,null,null,null,null,null,null,null,null,null,null,null,null,null,null,null,null,null,null,null,null,null,null,null,null,null,null,null,null,null,null,null,null,null,null,null,null,null,null,null,null,null,null,null,null,5]
[null,null,null,null,null,null,null,null,null,null,null,null,null,null,null,null,null,null,null,null,null,null,null,null,null,null,null,null,null,null,null,null,null,null,null,null,null,null,null,null,null,null,null,null,null,null,null,null,null,5]
[null,null,null,null,null,null,null,null,null,null,null,null,null,null,null,null,null,null,null,null,null,null,null,null,null,null,null,null,null,null,null,null,null,null,null,null,null,null,null,null,null,null,null,null,null,null,null,null,null,2]
[null,null,null,null,null,null,null,null,null,null,null,null,null,null,null,null,null,null,null,null,null,null,null,null,null,null,null,null,null,null,null,null,null,null,null,null,null,null,null,null,null,null,null,null,null,null,null,null,null,1]
[null,"a",null,"a",null,"a",null,"a",null,"b",null,"b",null,"b",null,"b",null,"b"]
[]
[]
[]
[null,"4a - 2a + 5b - b"]

{"sheet":"Data Comparison","index":19,"n_rows":13,"n_cols":26,"rows_kept":13,"cut":false,"hidden":false,"merged":[[7,1,7,2],[8,1,8,2],[10,1,11,4]]}
[]
[]
[]
[]
[null,"The data below shows the costs of contracts of iphones from two different phone companies.",null,null,null,null,null,null,null,null,null,null,null,null,null,null,null,null,null,null,null,null,null,null,null,"E-Phones"]
[null,null,null,null,null,null,null,null,null,null,null,null,null,null,null,null,null,null,null,null,null,null,null,null,0,40]
[null,null,null,"Phone Cost","Cost Per Month",null,null,null,null,null,null,null,null,null,null,null,null,null,null,null,null,null,null,null,24,960]
[null,"E-Phones",null,40,40]
[null,"X-Phones",null,150,10]
[null,null,null,null,null,null,null,null,null,null,null,null,null,null,null,null,null,null,null,null,null,null,null,null,null,"X-Phones"]
[null,"Draw a graph to show the comparative costs.",null,null,null,null,null,null,null,null,null,null,null,null,null,null,null,null,null,null,null,null,null,null,0,150]
[null,null,null,null,null,null,null,null,null,null,null,null,null,null,null,null,null,null,null,null,null,null,null,null,24,240]
[null,"Which Company is the best value?"]

{"sheet":"Bidmas","index":20,"n_rows":9,"n_cols":6,"rows_kept":9,"cut":false,"hidden":false,"merged":[[4,0,5,10],[8,1,9,3],[8,5,9,7]]}
[]
[]
[]
[null,"Work out the sum below:"]
["(2 + 7) × 3"]
[]
[null,"Which of the answers below is the correct?"]
[]
[null,23,null,null,null,27]

{"sheet":"Mental Multiplication","index":21,"n_rows":9,"n_cols":19,"rows_kept":9,"cut":false,"hidden":false,"merged":[[4,0,5,10],[8,1,9,9]]}
[]
[]
[]
[null,"Calculate the sum below in your head!"]
["35 ÷ 7",null,null,null,null,null,null,null,null,null,null,null,null,null,null,null,"Levels",null,3]
[]
[]
[]
[null,5]

{"sheet":"Template","index":22,"n_rows":9,"n_cols":19,"rows_kept":9,"cut":false,"hidden":false,"merged":[[4,0,5,10],[8,1,9,9]]}
[]
[]
[]
[]
[null,null,null,null,null,null,null,null,null,null,null,null,null,null,null,null,"Levels",null,1]
[]
[]
[]
[null,10]

{"sheet":"Metric Units","index":23,"n_rows":13,"n_cols":10,"rows_kept":13,"cut":false,"hidden":false,"merged":[[8,9,11,11],[5,1,7,3],[5,5,7,7],[5,9,7,11],[12,1,14,3],[12,5,14,7],[12,9,14,11],[8,1,11,3],[8,5,11,7]]}
[]
[]
[]
[null,"Convert the 3 metric units below to the units given:"]
[]
[null,"3.2 kg",null,null,null,"6 km",null,null,null,"2000 ml"]
[]
[]
[null,"to g",null,null,null,"to mm",null,null,null,"to litres"]
[]
[]
[]
[null,"3200 g",null,null,null,"6000 m",null,null,null,"2 l"]

{"sheet":"Sequences","index":24,"n_rows":9,"n_cols":19,"rows_kept":9,"cut":false,"hidden":false,"merged":[[4,1,5,14],[8,1,9,14]]}
[]
[]
[]
[null,"Find the next two numbers in the sequence below: "]
[null,"2, 8, 14, 20, 26, ........",null,null,null,null,null,null,null,null,null,null,null,null,null,null,"Level",null,1]
[]
[]
[]
[null,"32, 38, ..........."]